[Event "Late-Titled-Tuesday-Blitz-January-16-2024"]
[Site "Chess.com"]
[Date "2024.01.16"]
[Round "3"]
[White "annasargsyan_m"]
[Black "Too_Stupid_To_Play"]
[Result "0-1"]
[WhiteElo "2574"]
[BlackElo "2305"]
[TimeControl "180+1"]
[EndTime "14:25:57 PST"]
[Termination "Too_Stupid_To_Play won by resignation"]

1. d4 {[%clk 0:03:00.9]} 1... Nf6 {[%clk 0:01:24.6]} 2. c4 {[%clk 0:03:01.8]}
2... e6 {[%clk 0:01:24]} 3. Nf3 {[%clk 0:03:01.5]} 3... b6 {[%clk 0:01:23.8]} 4.
g3 {[%clk 0:03:01.8]} 4... Ba6 {[%clk 0:01:23.4]} 5. Qc2 {[%clk 0:03:00.4]} 5...
c5 {[%clk 0:01:20.3]} 6. Bg2 {[%clk 0:02:58.9]} 6... Bb7 {[%clk 0:01:20.3]} 7.
d5 {[%clk 0:02:58.9]} 7... exd5 {[%clk 0:01:19.5]} 8. cxd5 {[%clk 0:02:52.7]}
8... Bxd5 {[%clk 0:01:17.7]} 9. Nc3 {[%clk 0:02:50.3]} 9... Bb7 {[%clk
0:01:18.3]} 10. e4 {[%clk 0:02:50.4]} 10... Be7 {[%clk 0:01:16.1]} 11. O-O
{[%clk 0:02:51]} 11... O-O {[%clk 0:01:15.9]} 12. Bf4 {[%clk 0:02:51.3]} 12...
Nc6 {[%clk 0:01:15]} 13. Rad1 {[%clk 0:02:51.8]} 13... Qc8 {[%clk 0:01:08.3]}
14. Nb5 {[%clk 0:02:50]} 14... Nb4 {[%clk 0:01:04.7]} 15. Qb3 {[%clk 0:02:49]}
15... Bxe4 {[%clk 0:01:02.2]} 16. Rde1 {[%clk 0:02:45.9]} 16... d5 {[%clk
0:00:55.9]} 17. a3 {[%clk 0:02:43.5]} 17... Nd3 {[%clk 0:00:52.6]} 18. Nd6
{[%clk 0:02:27.3]} 18... Bxd6 {[%clk 0:00:51.3]} 19. Bxd6 {[%clk 0:02:28.2]}
19... Nxe1 {[%clk 0:00:50.3]} 20. Rxe1 {[%clk 0:02:28.6]} 20... Re8 {[%clk
0:00:47.2]} 21. Rd1 {[%clk 0:02:26.9]} 21... Qc6 {[%clk 0:00:43.1]} 22. Bf4
{[%clk 0:02:26.5]} 22... Rad8 {[%clk 0:00:37]} 23. Ne5 {[%clk 0:02:26.1]} 23...
Qe6 {[%clk 0:00:36.1]} 24. Bxe4 {[%clk 0:02:21.9]} 24... Nxe4 {[%clk 0:00:34.2]}
25. Nf3 {[%clk 0:02:18]} 25... d4 {[%clk 0:00:21.3]} 26. Qc2 {[%clk 0:02:11.2]}
26... h6 {[%clk 0:00:17.4]} 27. Kg2 {[%clk 0:02:10.5]} 27... Qd5 {[%clk
0:00:17.1]} 28. h4 {[%clk 0:02:08.9]} 28... Nf6 {[%clk 0:00:16.6]} 29. b4 {[%clk
0:02:03.4]} 29... Ng4 {[%clk 0:00:16.2]} 30. bxc5 {[%clk 0:01:59.8]} 30... bxc5
{[%clk 0:00:17.1]} 31. Rd3 {[%clk 0:01:56.7]} 31... Re7 {[%clk 0:00:16.3]} 32.
Kh3 {[%clk 0:01:53.9]} 32... Nf6 {[%clk 0:00:14.2]} 33. g4 {[%clk 0:01:47.8]}
33... Rde8 {[%clk 0:00:13.6]} 34. Nh2 {[%clk 0:01:46.8]} 34... Re2 {[%clk
0:00:12.8]} 35. Qa4 {[%clk 0:01:44.3]} 35... Rxf2 {[%clk 0:00:12.4]} 36. Rg3
{[%clk 0:01:41.1]} 36... Ree2 {[%clk 0:00:09.8]} 0-1

[Event "Late-Titled-Tuesday-Blitz-January-16-2024"]
[Site "Chess.com"]
[Date "2024.01.16"]
[Round "3"]
[White "giomar27"]
[Black "SEBAZZANO"]
[Result "0-1"]
[WhiteElo "2405"]
[BlackElo "2240"]
[TimeControl "180+1"]
[EndTime "14:25:57 PST"]
[Termination "SEBAZZANO won by resignation"]

1. Nc3 {[%clk 0:03:00.1]} 1... d5 {[%clk 0:02:56.5]} 2. d4 {[%clk 0:03:00]} 2...
e6 {[%clk 0:02:52.6]} 3. e4 {[%clk 0:02:58.7]} 3... dxe4 {[%clk 0:02:53.1]} 4.
Nxe4 {[%clk 0:02:58.7]} 4... Bd7 {[%clk 0:02:53.6]} 5. Ng5 {[%clk 0:02:56.9]}
5... Be7 {[%clk 0:02:35.6]} 6. N5f3 {[%clk 0:02:50.4]} 6... Nf6 {[%clk
0:02:29.1]} 7. Bd3 {[%clk 0:02:50.4]} 7... Bc6 {[%clk 0:02:23.9]} 8. Bg5 {[%clk
0:02:47.5]} 8... Nbd7 {[%clk 0:02:19.1]} 9. Qd2 {[%clk 0:02:46.2]} 9... Bxf3
{[%clk 0:02:16]} 10. Nxf3 {[%clk 0:02:46.1]} 10... c6 {[%clk 0:02:16]} 11. O-O-O
{[%clk 0:02:46]} 11... Qc7 {[%clk 0:02:15.2]} 12. Rhe1 {[%clk 0:02:45.3]} 12...
O-O-O {[%clk 0:02:13.4]} 13. c4 {[%clk 0:02:43.8]} 13... h6 {[%clk 0:02:02.1]}
14. Bh4 {[%clk 0:02:40.1]} 14... Bd6 {[%clk 0:01:50.9]} 15. Bg3 {[%clk
0:02:34.8]} 15... Bxg3 {[%clk 0:01:50.2]} 16. hxg3 {[%clk 0:02:34.8]} 16... Rhe8
{[%clk 0:01:49.7]} 17. Qc3 {[%clk 0:02:31.6]} 17... Kb8 {[%clk 0:01:49]} 18. Ne5
{[%clk 0:02:30.4]} 18... Nxe5 {[%clk 0:01:44.3]} 19. dxe5 {[%clk 0:02:24.8]}
19... Ng4 {[%clk 0:01:34.9]} 20. f4 {[%clk 0:02:20.6]} 20... Nf2 {[%clk
0:01:30.6]} 21. Rd2 {[%clk 0:02:20]} 21... Nxd3+ {[%clk 0:01:29.6]} 22. Rxd3
{[%clk 0:02:20.9]} 22... Rxd3 {[%clk 0:01:24.3]} 23. Qxd3 {[%clk 0:02:21.8]}
23... Rd8 {[%clk 0:01:24.5]} 24. Qe2 {[%clk 0:02:22]} 24... Qd7 {[%clk
0:01:14.9]} 25. Rd1 {[%clk 0:02:21.2]} 25... Qxd1+ {[%clk 0:01:13.6]} 26. Qxd1
{[%clk 0:02:22.1]} 26... Rxd1+ {[%clk 0:01:13.4]} 27. Kxd1 {[%clk 0:02:23]}
27... c5 {[%clk 0:01:11.3]} 28. Ke2 {[%clk 0:02:19]} 28... Kc7 {[%clk
0:01:05.3]} 29. Kf3 {[%clk 0:02:19.1]} 29... a6 {[%clk 0:01:02.2]} 30. g4 {[%clk
0:02:03.4]} 30... b5 {[%clk 0:01:01.1]} 31. b3 {[%clk 0:01:56.5]} 31... bxc4
{[%clk 0:00:53.8]} 32. bxc4 {[%clk 0:01:56.3]} 32... Kb6 {[%clk 0:00:54.3]} 33.
f5 {[%clk 0:01:31.3]} 33... Ka5 {[%clk 0:00:53.5]} 34. Kf4 {[%clk 0:01:31.3]}
34... Kb4 {[%clk 0:00:50.3]} 35. g5 {[%clk 0:01:31.8]} 35... hxg5+ {[%clk
0:00:30.6]} 36. Kxg5 {[%clk 0:01:31.5]} 36... exf5 {[%clk 0:00:27.1]} 37. Kxf5
{[%clk 0:01:31.4]} 37... Kxc4 {[%clk 0:00:27.3]} 38. g4 {[%clk 0:01:32.1]} 38...
Kd5 {[%clk 0:00:22.6]} 39. g5 {[%clk 0:01:29.6]} 39... c4 {[%clk 0:00:22.6]} 0-1

[Event "Late-Titled-Tuesday-Blitz-January-16-2024"]
[Site "Chess.com"]
[Date "2024.01.16"]
[Round "3"]
[White "Nick12772"]
[Black "OYAcosta"]
[Result "1/2-1/2"]
[WhiteElo "2348"]
[BlackElo "2127"]
[TimeControl "180+1"]
[EndTime "14:25:57 PST"]
[Termination "Game drawn by repetition"]

1. Nf3 {[%clk 0:03:00.9]} 1... d5 {[%clk 0:03:00.1]} 2. g3 {[%clk 0:03:01.1]}
2... Nf6 {[%clk 0:03:00.4]} 3. Bg2 {[%clk 0:03:01.2]} 3... c6 {[%clk 0:02:59]}
4. O-O {[%clk 0:03:01.7]} 4... Bf5 {[%clk 0:02:58.7]} 5. d4 {[%clk 0:03:01.8]}
5... Nbd7 {[%clk 0:02:58.2]} 6. Bf4 {[%clk 0:03:01.9]} 6... e6 {[%clk
0:02:58.3]} 7. c3 {[%clk 0:03:01.9]} 7... Ne4 {[%clk 0:02:55.9]} 8. Nbd2 {[%clk
0:03:00.2]} 8... Be7 {[%clk 0:02:55.4]} 9. Nxe4 {[%clk 0:03:00.3]} 9... Bxe4
{[%clk 0:02:54.9]} 10. Qb3 {[%clk 0:02:56.6]} 10... Qb6 {[%clk 0:02:53.4]} 11.
Ne5 {[%clk 0:02:52.5]} 11... Nxe5 {[%clk 0:02:52.7]} 12. Bxe4 {[%clk 0:02:46.4]}
12... Ng6 {[%clk 0:02:47]} 13. Bxg6 {[%clk 0:02:36.8]} 13... hxg6 {[%clk
0:02:46.4]} 14. h4 {[%clk 0:02:31]} 14... c5 {[%clk 0:02:40.9]} 15. dxc5 {[%clk
0:02:16.7]} 15... Bxc5 {[%clk 0:02:40.4]} 16. Qxb6 {[%clk 0:02:12.9]} 16... Bxb6
{[%clk 0:02:40.1]} 17. Be5 {[%clk 0:02:03.1]} 17... O-O {[%clk 0:02:38.9]} 18.
Bd4 {[%clk 0:02:01.4]} 18... Bxd4 {[%clk 0:02:38.3]} 19. cxd4 {[%clk 0:02:02.3]}
19... Rac8 {[%clk 0:02:38.6]} 20. Rac1 {[%clk 0:02:02.5]} 20... f6 {[%clk
0:02:20.2]} 21. Kg2 {[%clk 0:01:59.5]} 21... Kf7 {[%clk 0:02:18.5]} 22. Kf3
{[%clk 0:01:59.1]} 22... Ke7 {[%clk 0:02:18.6]} 23. Ke3 {[%clk 0:01:57.9]} 23...
Kd6 {[%clk 0:02:18.6]} 24. Kd2 {[%clk 0:01:47.2]} 24... Rc6 {[%clk 0:02:15.3]}
25. Rxc6+ {[%clk 0:01:46.6]} 25... Kxc6 {[%clk 0:02:15.5]} 26. Rh1 {[%clk
0:01:33.9]} 26... Rh8 {[%clk 0:02:12.3]} 27. Rc1+ {[%clk 0:01:32.5]} 27... Kd7
{[%clk 0:02:11.7]} 28. a4 {[%clk 0:01:19.8]} 28... Rc8 {[%clk 0:02:11.1]} 29.
Rxc8 {[%clk 0:01:17.5]} 29... Kxc8 {[%clk 0:02:11.4]} 30. g4 {[%clk 0:01:14.6]}
30... Kc7 {[%clk 0:02:10.5]} 31. b4 {[%clk 0:01:12.2]} 31... Kb6 {[%clk
0:02:09.8]} 32. f3 {[%clk 0:01:03.8]} 32... a5 {[%clk 0:02:01.2]} 33. b5 {[%clk
0:01:00.2]} 33... Kc7 {[%clk 0:01:59.9]} 34. e4 {[%clk 0:00:59.9]} 34... Kd6
{[%clk 0:01:59]} 35. Ke3 {[%clk 0:00:55.1]} 35... g5 {[%clk 0:01:31.4]} 36. h5
{[%clk 0:00:37.9]} 36... e5 {[%clk 0:01:27.2]} 37. Kd3 {[%clk 0:00:30.9]} 37...
Ke6 {[%clk 0:01:20]} 38. Ke3 {[%clk 0:00:27.3]} 38... b6 {[%clk 0:01:19.4]} 39.
Kd3 {[%clk 0:00:27.4]} 39... Kd6 {[%clk 0:01:19.5]} 40. Ke3 {[%clk 0:00:27.7]}
40... Ke6 {[%clk 0:01:19.7]} 41. Kd3 {[%clk 0:00:28.3]} 41... Kd6 {[%clk
0:01:20.3]} 42. Ke3 {[%clk 0:00:29]} 42... Ke6 {[%clk 0:01:20.8]} 1/2-1/2

[Event "Late-Titled-Tuesday-Blitz-January-16-2024"]
[Site "Chess.com"]
[Date "2024.01.16"]
[Round "3"]
[White "AmanteDeMoi"]
[Black "AkatsukiLogHorizon"]
[Result "1-0"]
[WhiteElo "2565"]
[BlackElo "2279"]
[TimeControl "180+1"]
[EndTime "14:25:58 PST"]
[Termination "AmanteDeMoi won by resignation"]

1. Nf3 {[%clk 0:02:58.8]} 1... Nf6 {[%clk 0:02:57.9]} 2. b3 {[%clk 0:02:58.3]}
2... g6 {[%clk 0:02:57.5]} 3. Bb2 {[%clk 0:02:58.4]} 3... Bg7 {[%clk 0:02:58.1]}
4. e3 {[%clk 0:02:58.6]} 4... O-O {[%clk 0:02:57]} 5. Be2 {[%clk 0:02:58.7]}
5... d5 {[%clk 0:02:56.9]} 6. O-O {[%clk 0:02:58.2]} 6... c5 {[%clk 0:02:56.8]}
7. c4 {[%clk 0:02:58.6]} 7... dxc4 {[%clk 0:02:55]} 8. bxc4 {[%clk 0:02:58]}
8... b6 {[%clk 0:02:49.7]} 9. d4 {[%clk 0:02:52.4]} 9... cxd4 {[%clk 0:02:45.1]}
10. exd4 {[%clk 0:02:50.8]} 10... Bb7 {[%clk 0:02:44.5]} 11. d5 {[%clk
0:02:46.1]} 11... Nbd7 {[%clk 0:02:41.1]} 12. Nbd2 {[%clk 0:02:39.3]} 12... Nc5
{[%clk 0:02:39.7]} 13. Nb3 {[%clk 0:02:38.4]} 13... Nxb3 {[%clk 0:02:33.1]} 14.
axb3 {[%clk 0:02:37.2]} 14... a5 {[%clk 0:02:22.5]} 15. Re1 {[%clk 0:02:34.7]}
15... Rc8 {[%clk 0:02:16.1]} 16. Bf1 {[%clk 0:02:19.9]} 16... Nd7 {[%clk
0:02:00.7]} 17. Bxg7 {[%clk 0:02:17.2]} 17... Kxg7 {[%clk 0:02:00.8]} 18. Qd4+
{[%clk 0:02:06.2]} 18... f6 {[%clk 0:01:40]} 19. Ng5 {[%clk 0:01:59.8]} 19...
Nc5 {[%clk 0:01:38.6]} 20. Ne6+ {[%clk 0:01:40.2]} 20... Nxe6 {[%clk 0:01:37.9]}
21. Rxe6 {[%clk 0:01:38.2]} 21... Rc5 {[%clk 0:01:14.3]} 22. Rae1 {[%clk
0:01:23.9]} 22... Rf7 {[%clk 0:01:10.1]} 23. d6 {[%clk 0:01:11]} 23... exd6
{[%clk 0:01:03.2]} 24. Rxd6 {[%clk 0:01:11]} 24... Qc7 {[%clk 0:01:00.6]} 25.
Re8 {[%clk 0:01:09.9]} 25... Bc6 {[%clk 0:00:47.4]} 26. Ree6 {[%clk 0:01:03.4]}
1-0

[Event "Late-Titled-Tuesday-Blitz-January-16-2024"]
[Site "Chess.com"]
[Date "2024.01.16"]
[Round "3"]
[White "JG-17"]
[Black "treadstone_71"]
[Result "1-0"]
[WhiteElo "2468"]
[BlackElo "2269"]
[TimeControl "180+1"]
[EndTime "14:26:03 PST"]
[Termination "JG-17 won by resignation"]

1. d4 {[%clk 0:02:30.2]} 1... Nf6 {[%clk 0:02:57.9]} 2. c3 {[%clk 0:02:30.4]}
2... g6 {[%clk 0:02:54.7]} 3. Nf3 {[%clk 0:02:30.9]} 3... Bg7 {[%clk 0:02:54.9]}
4. g3 {[%clk 0:02:31.6]} 4... O-O {[%clk 0:02:54.2]} 5. Bg2 {[%clk 0:02:32.5]}
5... d5 {[%clk 0:02:40.2]} 6. O-O {[%clk 0:02:33.4]} 6... c6 {[%clk 0:02:40.6]}
7. a4 {[%clk 0:02:33.1]} 7... Nbd7 {[%clk 0:02:38.1]} 8. a5 {[%clk 0:02:33]}
8... Re8 {[%clk 0:02:35.9]} 9. Bf4 {[%clk 0:02:33]} 9... Nh5 {[%clk 0:02:31.6]}
10. Be3 {[%clk 0:02:33.7]} 10... e5 {[%clk 0:02:26.4]} 11. dxe5 {[%clk
0:02:33.9]} 11... Nxe5 {[%clk 0:02:26.8]} 12. Nxe5 {[%clk 0:02:31.5]} 12... Rxe5
{[%clk 0:02:27.7]} 13. Nd2 {[%clk 0:02:26.8]} 13... Re8 {[%clk 0:02:26.4]} 14.
Qb3 {[%clk 0:02:20.9]} 14... Nf6 {[%clk 0:02:18]} 15. Bd4 {[%clk 0:02:18.4]}
15... Ne4 {[%clk 0:01:31.9]} 16. Nxe4 {[%clk 0:02:12.7]} 16... Bxd4 {[%clk
0:01:26.4]} 17. cxd4 {[%clk 0:02:12.4]} 17... dxe4 {[%clk 0:01:26.8]} 18. Rfd1
{[%clk 0:02:10.7]} 18... Qc7 {[%clk 0:01:21.1]} 19. d5 {[%clk 0:02:06.6]} 19...
cxd5 {[%clk 0:01:19.3]} 20. Qxd5 {[%clk 0:02:06]} 20... Be6 {[%clk 0:01:03]} 21.
Qxe4 {[%clk 0:02:06.1]} 21... Bb3 {[%clk 0:01:02.7]} 22. Qxb7 {[%clk 0:02:06.7]}
22... Qxb7 {[%clk 0:01:02.4]} 23. Bxb7 {[%clk 0:02:06.8]} 23... Rab8 {[%clk
0:01:02.8]} 24. Rd7 {[%clk 0:02:07]} 24... Rxe2 {[%clk 0:00:58]} 25. a6 {[%clk
0:01:58.8]} 25... Be6 {[%clk 0:00:46.3]} 26. Re7 {[%clk 0:01:53.3]} 26... Rxb2
{[%clk 0:00:45.9]} 27. Rc1 {[%clk 0:01:53.7]} 27... Rd8 {[%clk 0:00:37.6]} 28.
Bg2 {[%clk 0:01:38.3]} 28... Rdd2 {[%clk 0:00:29.7]} 29. Rb7 {[%clk 0:01:26.9]}
29... Rxf2 {[%clk 0:00:26.3]} 30. Rxb2 {[%clk 0:01:25.3]} 30... Rxb2 {[%clk
0:00:26.2]} 31. Rc7 {[%clk 0:01:25]} 31... Ra2 {[%clk 0:00:21.6]} 32. Rxa7
{[%clk 0:01:24.4]} 32... Bc4 {[%clk 0:00:17.9]} 33. Ra8+ {[%clk 0:01:21.5]}
33... Kg7 {[%clk 0:00:18]} 34. a7 {[%clk 0:01:22]} 34... Ra1+ {[%clk 0:00:16.1]}
35. Kf2 {[%clk 0:01:22.1]} 35... Ra2+ {[%clk 0:00:16.9]} 36. Ke3 {[%clk
0:01:19.6]} 36... Rxg2 {[%clk 0:00:16.3]} 37. Rg8+ {[%clk 0:01:20.1]} 1-0

[Event "Late-Titled-Tuesday-Blitz-January-16-2024"]
[Site "Chess.com"]
[Date "2024.01.16"]
[Round "3"]
[White "ExchangeAB"]
[Black "MeisterJabo"]
[Result "1-0"]
[WhiteElo "2458"]
[BlackElo "2260"]
[TimeControl "180+1"]
[EndTime "14:26:04 PST"]
[Termination "ExchangeAB won by resignation"]

1. d4 {[%clk 0:03:00.9]} 1... Nf6 {[%clk 0:02:52.8]} 2. Nf3 {[%clk 0:03:00.7]}
2... e6 {[%clk 0:02:45.2]} 3. c3 {[%clk 0:03:00.2]} 3... d5 {[%clk 0:02:45.7]}
4. Bf4 {[%clk 0:02:59.7]} 4... Bd6 {[%clk 0:02:45.9]} 5. Bxd6 {[%clk 0:02:59.2]}
5... Qxd6 {[%clk 0:02:46.8]} 6. e3 {[%clk 0:02:59.7]} 6... O-O {[%clk
0:02:46.7]} 7. Ne5 {[%clk 0:02:58.6]} 7... Nbd7 {[%clk 0:02:46.5]} 8. f4 {[%clk
0:02:58.6]} 8... c5 {[%clk 0:02:46.9]} 9. Nd2 {[%clk 0:02:58.1]} 9... Ne8 {[%clk
0:02:46.6]} 10. Bd3 {[%clk 0:02:57.9]} 10... f6 {[%clk 0:02:38.8]} 11. Qh5
{[%clk 0:02:54]} 11... f5 {[%clk 0:02:37.8]} 12. O-O {[%clk 0:02:42.8]} 12...
Nef6 {[%clk 0:02:37.5]} 13. Qh4 {[%clk 0:02:41.9]} 13... Ne4 {[%clk 0:02:36.6]}
14. Bxe4 {[%clk 0:02:40.9]} 14... dxe4 {[%clk 0:02:35]} 15. Nxd7 {[%clk
0:02:41]} 15... Bxd7 {[%clk 0:02:34.5]} 16. Nc4 {[%clk 0:02:41]} 16... Qc7
{[%clk 0:02:31.9]} 17. Ne5 {[%clk 0:02:41.2]} 17... Bb5 {[%clk 0:02:29.4]} 18.
Rfc1 {[%clk 0:02:40.1]} 18... Bd3 {[%clk 0:02:27.4]} 19. Qe1 {[%clk 0:02:37.4]}
19... c4 {[%clk 0:02:27.3]} 20. b4 {[%clk 0:02:31.8]} 20... a5 {[%clk 0:02:21]}
21. a3 {[%clk 0:02:30.9]} 21... axb4 {[%clk 0:02:19.6]} 22. axb4 {[%clk
0:02:31.8]} 22... b5 {[%clk 0:02:18.8]} 23. Rxa8 {[%clk 0:02:31]} 23... Rxa8
{[%clk 0:02:18.3]} 24. Ra1 {[%clk 0:02:31.5]} 24... Qb7 {[%clk 0:02:18.3]} 25.
h3 {[%clk 0:02:25.2]} 25... Ra6 {[%clk 0:01:49.2]} 26. Rxa6 {[%clk 0:02:23]}
26... Qxa6 {[%clk 0:01:50.1]} 27. Qh4 {[%clk 0:02:20.5]} 27... h6 {[%clk
0:01:14.1]} 28. Qd8+ {[%clk 0:02:17.2]} 28... Kh7 {[%clk 0:01:14.3]} 29. Nf7
{[%clk 0:01:40.4]} 29... e5 {[%clk 0:00:05.4]} 30. Qh8+ {[%clk 0:01:36.5]} 30...
Kg6 {[%clk 0:00:05.5]} 31. Nxe5+ {[%clk 0:01:36.6]} 31... Kf6 {[%clk 0:00:05.9]}
32. Qf8+ {[%clk 0:01:27.4]} 32... Ke6 {[%clk 0:00:06.2]} 33. Qf7+ {[%clk
0:01:24.6]} 33... Kd6 {[%clk 0:00:06.4]} 34. Qg6+ {[%clk 0:01:24.5]} 34... Kc7
{[%clk 0:00:06.1]} 35. Qxa6 {[%clk 0:01:25.4]} 1-0

[Event "Late-Titled-Tuesday-Blitz-January-16-2024"]
[Site "Chess.com"]
[Date "2024.01.16"]
[Round "3"]
[White "Jbd735"]
[Black "GothamChess"]
[Result "0-1"]
[WhiteElo "2530"]
[BlackElo "2751"]
[TimeControl "180+1"]
[EndTime "14:26:07 PST"]
[Termination "GothamChess won by resignation"]

1. e4 {[%clk 0:03:00.9]} 1... d5 {[%clk 0:02:58.9]} 2. exd5 {[%clk 0:03:00.1]}
2... Qxd5 {[%clk 0:02:59.8]} 3. Nc3 {[%clk 0:02:59.6]} 3... Qa5 {[%clk
0:03:00.5]} 4. Bc4 {[%clk 0:02:56.1]} 4... Nf6 {[%clk 0:03:00.2]} 5. d4 {[%clk
0:02:46.1]} 5... Bf5 {[%clk 0:02:59.8]} 6. Nf3 {[%clk 0:02:44]} 6... e6 {[%clk
0:02:59.3]} 7. O-O {[%clk 0:02:42.8]} 7... Bb4 {[%clk 0:02:59]} 8. Bd2 {[%clk
0:02:37.2]} 8... Nc6 {[%clk 0:02:59.7]} 9. a3 {[%clk 0:02:35.3]} 9... Bxc3
{[%clk 0:03:00.1]} 10. Bxc3 {[%clk 0:02:34.5]} 10... Qb6 {[%clk 0:03:00.8]} 11.
d5 {[%clk 0:02:11.1]} 11... O-O-O {[%clk 0:03:00.5]} 12. Nd4 {[%clk 0:01:54.7]}
12... Nxd5 {[%clk 0:02:17.7]} 13. Nxf5 {[%clk 0:01:33.9]} 13... Nxc3 {[%clk
0:02:12.8]} 14. Qf3 {[%clk 0:01:14.3]} 14... Nd5 {[%clk 0:01:57.7]} 15. Bxd5
{[%clk 0:01:03.8]} 15... Rxd5 {[%clk 0:01:54.2]} 16. Nxg7 {[%clk 0:01:04]} 16...
Qxb2 {[%clk 0:01:41.4]} 17. c4 {[%clk 0:00:44.6]} 17... Rg5 {[%clk 0:01:04.5]}
18. Rab1 {[%clk 0:00:42.5]} 18... Qxg7 {[%clk 0:01:02.5]} 19. Rxb7 {[%clk
0:00:42.3]} 19... Rxg2+ {[%clk 0:00:51.5]} 20. Kh1 {[%clk 0:00:36.9]} 20...
Rxh2+ {[%clk 0:00:34.2]} 21. Kxh2 {[%clk 0:00:35.9]} 21... Qh6+ {[%clk 0:00:33]}
0-1

[Event "Late-Titled-Tuesday-Blitz-January-16-2024"]
[Site "Chess.com"]
[Date "2024.01.16"]
[Round "3"]
[White "Caterpiller35"]
[Black "Igor_Lysyj"]
[Result "0-1"]
[WhiteElo "2629"]
[BlackElo "2869"]
[TimeControl "180+1"]
[EndTime "14:26:14 PST"]
[Termination "Igor_Lysyj won by resignation"]

1. d4 {[%clk 0:02:59.6]} 1... d5 {[%clk 0:02:59.2]} 2. Bf4 {[%clk 0:02:59.4]}
2... Nf6 {[%clk 0:02:57.5]} 3. e3 {[%clk 0:02:59.2]} 3... Bf5 {[%clk 0:02:57.6]}
4. c4 {[%clk 0:02:54.7]} 4... e6 {[%clk 0:02:57]} 5. Nc3 {[%clk 0:02:54.8]} 5...
Nbd7 {[%clk 0:02:55.2]} 6. Nf3 {[%clk 0:02:53.4]} 6... Bb4 {[%clk 0:02:53.9]} 7.
Qb3 {[%clk 0:02:52.6]} 7... c5 {[%clk 0:02:53.6]} 8. cxd5 {[%clk 0:02:51.3]}
8... Nxd5 {[%clk 0:02:51.4]} 9. Bb5 {[%clk 0:02:37.9]} 9... Nxf4 {[%clk
0:02:41]} 10. exf4 {[%clk 0:02:32.8]} 10... O-O {[%clk 0:02:40.5]} 11. O-O
{[%clk 0:02:28.4]} 11... Nb6 {[%clk 0:02:29.1]} 12. dxc5 {[%clk 0:02:25]} 12...
Bxc5 {[%clk 0:02:28.5]} 13. Rad1 {[%clk 0:02:25.2]} 13... Qe7 {[%clk 0:02:28.1]}
14. Rfe1 {[%clk 0:02:21.8]} 14... Bg4 {[%clk 0:02:21.6]} 15. Ne4 {[%clk
0:02:16.7]} 15... Rad8 {[%clk 0:02:17]} 16. h3 {[%clk 0:02:13.1]} 16... Bxf3
{[%clk 0:02:10.7]} 17. Qxf3 {[%clk 0:02:14]} 17... Bd4 {[%clk 0:01:56.1]} 18. b3
{[%clk 0:01:59.7]} 18... Qb4 {[%clk 0:01:54.8]} 19. Bd3 {[%clk 0:01:58.7]} 19...
g6 {[%clk 0:01:51.8]} 20. h4 {[%clk 0:01:56.4]} 20... Bg7 {[%clk 0:01:45.1]} 21.
h5 {[%clk 0:01:54.1]} 21... Rd4 {[%clk 0:01:41.9]} 22. hxg6 {[%clk 0:01:49.2]}
22... hxg6 {[%clk 0:01:41.5]} 23. g3 {[%clk 0:01:44]} 23... Rfd8 {[%clk
0:01:40.7]} 24. Kg2 {[%clk 0:01:40.8]} 24... R8d5 {[%clk 0:01:35.3]} 25. Bc2
{[%clk 0:01:27.9]} 25... Rxd1 {[%clk 0:01:32.1]} 26. Rxd1 {[%clk 0:01:27.7]}
26... Rxd1 {[%clk 0:01:30.3]} 27. Qxd1 {[%clk 0:01:20.7]} 27... Nd5 {[%clk
0:01:30]} 28. Qf3 {[%clk 0:01:18.4]} 28... Qd4 {[%clk 0:01:27.7]} 29. Ng5 {[%clk
0:01:12]} 29... b6 {[%clk 0:01:07.7]} 30. Qg4 {[%clk 0:01:00.2]} 30... Qd2
{[%clk 0:01:02.7]} 0-1

[Event "Late-Titled-Tuesday-Blitz-January-16-2024"]
[Site "Chess.com"]
[Date "2024.01.16"]
[Round "3"]
[White "SanchezKelvin"]
[Black "Javylavilla"]
[Result "1-0"]
[WhiteElo "2581"]
[BlackElo "2347"]
[TimeControl "180+1"]
[EndTime "14:26:20 PST"]
[Termination "SanchezKelvin won by checkmate"]

1. e4 {[%clk 0:03:00.9]} 1... c5 {[%clk 0:02:51]} 2. Nf3 {[%clk 0:03:00.6]} 2...
d6 {[%clk 0:02:49.6]} 3. Nc3 {[%clk 0:03:00.2]} 3... Nc6 {[%clk 0:02:46.8]} 4.
d4 {[%clk 0:03:00.2]} 4... cxd4 {[%clk 0:02:47.7]} 5. Nxd4 {[%clk 0:03:00.9]}
5... Nf6 {[%clk 0:02:47.8]} 6. Bg5 {[%clk 0:03:00.7]} 6... Bd7 {[%clk 0:02:48]}
7. f4 {[%clk 0:03:00.6]} 7... Rc8 {[%clk 0:02:45.6]} 8. Nb3 {[%clk 0:02:59.1]}
8... h6 {[%clk 0:02:44.5]} 9. Bh4 {[%clk 0:02:57.6]} 9... e6 {[%clk 0:02:40.9]}
10. Qf3 {[%clk 0:02:56.7]} 10... Be7 {[%clk 0:02:40.7]} 11. O-O-O {[%clk
0:02:55.4]} 11... a6 {[%clk 0:02:37.2]} 12. Be2 {[%clk 0:02:50.9]} 12... b5
{[%clk 0:02:28.7]} 13. Rhe1 {[%clk 0:02:46.1]} 13... Qb6 {[%clk 0:02:23.9]} 14.
Bf2 {[%clk 0:02:42.1]} 14... Qc7 {[%clk 0:02:21.5]} 15. Kb1 {[%clk 0:02:27.8]}
15... b4 {[%clk 0:02:18.2]} 16. Nd5 {[%clk 0:02:27.7]} 16... exd5 {[%clk
0:02:15.6]} 17. exd5 {[%clk 0:02:28.1]} 17... Na5 {[%clk 0:02:08.7]} 18. Nxa5
{[%clk 0:02:27.2]} 18... Qxa5 {[%clk 0:01:40.7]} 19. Bf1 {[%clk 0:02:11.9]}
19... Kf8 {[%clk 0:01:40.4]} 20. Bd4 {[%clk 0:02:01.2]} 20... Bg4 {[%clk
0:01:21]} 21. Qe3 {[%clk 0:01:52.1]} 21... Nxd5 {[%clk 0:01:20.8]} 22. Qg3
{[%clk 0:01:43.3]} 22... Nc3+ {[%clk 0:00:50.6]} 23. Bxc3 {[%clk 0:01:20.5]}
23... bxc3 {[%clk 0:00:51.5]} 24. Qxg4 {[%clk 0:01:20.6]} 24... Rb8 {[%clk
0:00:45.7]} 25. Bc4 {[%clk 0:01:10.7]} 25... Rxb2+ {[%clk 0:00:41.6]} 26. Ka1
{[%clk 0:01:02.9]} 26... Rb8 {[%clk 0:00:30.2]} 27. Rb1 {[%clk 0:00:53]} 27...
Rxb1+ {[%clk 0:00:12.5]} 28. Rxb1 {[%clk 0:00:52.4]} 28... g6 {[%clk 0:00:13.1]}
29. Qd7 {[%clk 0:00:49.1]} 29... Bf6 {[%clk 0:00:11.7]} 30. Qxf7# {[%clk
0:00:48.8]} 1-0